Workbook

Sheet Лист1
A1: Школа | C1: МБОУ "Нижнеуратьминская СОШ НМР РТ | F1: Согласование: | G1: должность | H1: Директор
A2: Типовое примерное меню приготавливаемых блюд | G2: фамилия | H2: Хайруллина Р.Р.
A3: Возрастная категория | E3: 7-11 лет | G3: дата | H3: 2 | I3: 3 | J3: 2026
H4: день | I4: месяц | J4: год
A5: Неделя | B5: День недели | C5: Прием пищи | D5: Раздел меню | E5: Блюда | F5: Вес блюда, г | G5: Белки | H5: Жиры | I5: Углеводы | J5: Калорийность | K5: № рецептуры | L5: Цена
A6: 1 | B6: 1 | C6: Завтрак | D6: фрукты | E6: Яблоко | F6: 100 | G6: 0.40 | H6: 0.40 | I6: 9.80 | J6: 47.00 | L6: 92.89
D7: гор.блюдо | E7: Пюре картофельное, сосиски отварные | F7: 300 | G7: 15.19 | H7: 16.78 | I7: 54.88 | J7: 419.00
D8: гор.напиток | E8: Чай с молоком и сахаром | F8: 200 | G8: 1.52 | H8: 1.35 | I8: 8.92 | J8: 53.07
D9: хлеб черн. | E9: Хлеб ржаной | F9: 20 | G9: 1.32 | H9: 0.24 | I9: 7.92 | J9: 39.60
D12: итого | F12: =SUM(F6:F11) -> 620 | G12: =SUM(G6:G11) -> 18.43 | H12: 18.77 | I12: 81.52 | J12: 558.67 | L12: 92.89
A13: =A6 -> 1 | B13: =B6 -> 1 | C13: Обед
D20: итого | F20: =SUM(F13:F19) -> 0 | G20: =SUM(G13:G19) -> 0.00 | H20: =SUM(H13:H19) -> 0.00 | I20: =SUM(I13:I19) -> 0.00 | J20: =SUM(J13:J19) -> 0.00 | L20: =SUM(L13:L19) -> 0.00
A21: =A6 -> 1 | B21: =B6 -> 1 | C21: Итого за день: | F21: =F12+F20 -> 620 | G21: =G12+G20 -> 18.43 | H21: =H12+H20 -> 18.77 | I21: =I12+I20 -> 81.52 | J21: =J12+J20 -> 558.67 | L21: =L12+L20 -> 92.89
A22: 1 | B22: 2 | C22: Завтрак | D22: хлеб бел. | E22: Бутерброд с маслом сливочным | F22: 40 | G22: 2.36 | H22: 7.49 | I22: 14.89 | J22: 136.00 | L22: 92.89
D23: гор.блюдо | E23: Макаронные изделия (рожки) отварные, биточки рыбные из минтая с овощами | F23: 253 | G23: 11.26 | H23: 9.16 | I23: 52.91 | J23: 336.30
D24: гор.напиток | E24: Кофейный напиток с молоком | F24: 200 | G24: 3.17 | H24: 2.68 | I24: 9.98 | J24: 60.10
D25: хлеб бел. | E25: Хлеб пшеничный | F25: 20 | G25: 1.52 | H25: 0.16 | I25: 9.84 | J25: 47.00
D28: итого | F28: =SUM(F22:F27) -> 513 | G28: =SUM(G22:G27) -> 18.31 | H28: 19.49 | I28: 87.62 | J28: 579.40 | L28: 92.89
A29: =A22 -> 1 | B29: =B22 -> 2 | C29: Обед
D36: итого | F36: =SUM(F29:F35) -> 0 | G36: =SUM(G29:G35) -> 0.00 | H36: =SUM(H29:H35) -> 0.00 | I36: =SUM(I29:I35) -> 0.00 | J36: =SUM(J29:J35) -> 0.00 | L36: =SUM(L29:L35) -> 0.00
A37: =A22 -> 1 | B37: =B22 -> 2 | C37: Итого за день: | F37: =F28+F36 -> 513 | G37: =G28+G36 -> 18.31 | H37: =H28+H36 -> 19.49 | I37: =I28+I36 -> 87.62 | J37: =J28+J36 -> 579.4 | L37: =L28+L36 -> 92.89
A38: 1 | B38: 3 | C38: Завтрак | D38: хлеб бел. | E38: Бутерброд с сыром | F38: 40 | G38: 2.93 | H38: 2.96 | I38: 3.10 | J38: 43.23 | L38: 92.89
D39: гор.блюдо | E39: Каша пшеничная (вязкая), тефтели мясные с геркулесом | F39: 243 | G39: 13.00 | H39: 16.29 | I39: 50.85 | J39: 396.59
D40: гор.напиток | E40: Чай с сахаром с лимоном | F40: 200 | G40: 0.13 | H40: 0.02 | I40: 8.20 | J40: 34.02
D41: хлеб бел. | E41: Хлеб пшеничный | F41: 20 | G41: 1.52 | H41: 0.16 | I41: 9.84 | J41: 47.00
D42: хлеб черн. | E42: Хлеб ржаной | F42: 20 | G42: 1.32 | H42: 0.24 | I42: 7.92 | J42: 39.60
D44: итого | F44: =SUM(F38:F43) -> 523 | G44: =SUM(G38:G43) -> 18.90 | H44: 19.67 | I44: 79.91 | J44: 560.44 | L44: 92.89
A45: =A38 -> 1 | B45: =B38 -> 3 | C45: Обед
D53: итого | F53: =SUM(F45:F52) -> 0 | G53: =SUM(G45:G52) -> 0 | H53: =SUM(H45:H52) -> 0 | I53: =SUM(I45:I52) -> 0 | J53: =SUM(J45:J52) -> 0 | L53: =SUM(L45:L52) -> 0.00
A54: =A38 -> 1 | B54: =B38 -> 3 | C54: Итого за день: | F54: =F44+F53 -> 523 | G54: =G44+G53 -> 18.9 | H54: =H44+H53 -> 19.67 | I54: =I44+I53 -> 79.91 | J54: =J44+J53 -> 560.44 | L54: =L44+L53 -> 92.89
A55: 1 | B55: 4 | C55: Завтрак | D55: доп.гарнир | E55: Свекла отварная | F55: 60 | G55: 0.84 | H55: 0.68 | I55: 4.27 | J55: 42.68 | L55: 92.89
D56: гор.блюдо | E56: Плов из куриной грудки | F56: 200 | G56: 15.42 | H56: 18.96 | I56: 49.93 | J56: 418.50
D57: напиток | E57: Напиток из урюка | F57: 200 | G57: 0.75 | H57: 0.06 | I57: 15.95 | J57: 68.52
D58: хлеб бел. | E58: Хлеб пшеничный | F58: 20 | G58: 1.52 | H58: 0.16 | I58: 9.84 | J58: 47.00
D59: хлеб черн. | E59: Хлеб ржаной | F59: 20 | G59: 1.32 | H59: 0.24 | I59: 7.92 | J59: 39.60
D61: итого | F61: =SUM(F55:F60) -> 500 | G61: =SUM(G55:G60) -> 19.85 | H61: 20.10 | I61: 87.91 | J61: 616.30 | L61: 92.89
A62: =A55 -> 1 | B62: =B55 -> 4 | C62: Обед
D69: итого | F69: =SUM(F62:F68) -> 0 | G69: =SUM(G62:G68) -> 0 | H69: =SUM(H62:H68) -> 0 | I69: =SUM(I62:I68) -> 0 | J69: =SUM(J62:J68) -> 0 | L69: =SUM(L62:L68) -> 0.00
A70: =A55 -> 1 | B70: =B55 -> 4 | C70: Итого за день: | F70: =F61+F69 -> 500 | G70: =G61+G69 -> 19.85 | H70: 20.1 | I70: 87.91 | J70: 616.3 | L70: =L61+L69 -> 92.89
A71: 1 | B71: 5 | C71: Завтрак | D71: фрукты | E71: Яблоко | F71: 120 | G71: 0.48 | H71: 0.48 | I71: 15.86 | J71: 50.00 | L71: 92.89
D72: гор.блюдо | E72: Сырники из творога со сгущенным молоком | F72: 150 | G72: 15.55 | H72: 18.35 | I72: 40.33 | J72: 398.93
D73: гор.напиток | E73: Чай с сахаром | F73: 200 | G73: 0.07 | H73: 0.02 | I73: 8.00 | J73: 32.00
D74: хлеб бел. | E74: Хлеб пшеничный | F74: 20 | G74: 1.52 | H74: 0.16 | I74: 9.84 | J74: 47.00
D75: хлеб черн. | E75: Хлеб ржаной | F75: 20 | G75: 1.32 | H75: 0.24 | I75: 7.92 | J75: 39.60
D77: итого | F77: =SUM(F71:F76) -> 510 | G77: =SUM(G71:G76) -> 18.94 | H77: =SUM(H71:H76) -> 19.25 | I77: =SUM(I71:I76) -> 81.95 | J77: =SUM(J71:J76) -> 567.53 | L77: =SUM(L71:L76) -> 92.89
A78: =A71 -> 1 | B78: =B71 -> 5 | C78: Обед
D85: итого | F85: =SUM(F78:F84) -> 0 | G85: =SUM(G78:G84) -> 0.00 | H85: =SUM(H78:H84) -> 0 | I85: =SUM(I78:I84) -> 0 | J85: =SUM(J78:J84) -> 0 | L85: =SUM(L78:L84) -> 0.00
A86: =A71 -> 1 | B86: =B71 -> 5 | C86: Итого за день: | F86: =F77+F85 -> 510 | G86: =G77+G85 -> 18.94 | H86: =H77+H85 -> 19.25 | I86: =I77+I85 -> 81.95 | J86: =J77+J85 -> 567.53 | L86: =L77+L85 -> 92.89
A87: 2 | B87: 1 | C87: Завтрак | D87: хлеб бел. | E87: Бутерброд с сыром и маслом сливочным | F87: 50 | G87: 6.27 | H87: 7.86 | I87: 14.83 | J87: 155.00 | L87: 92.89
D88: гор.блюдо | E88: Макаронные изделия (рожки) отварные, котлеты "нежные" из куриных грудок | F88: 242 | G88: 11.48 | H88: 11.73 | I88: 52.95 | J88: 365.90
D89: напиток | E89: Чай с сахаром, с яблоком | F89: 200 | G89: 0.11 | H89: 0.06 | I89: 8.97 | J89: 36.68
D90: хлеб бел. | E90: Хлеб пшеничный | F90: 15 | G90: 1.14 | H90: 0.12 | I90: 7.38 | J90: 35.25
D92: итого | F92: =SUM(F87:F91) -> 507 | G92: =SUM(G87:G91) -> 19.00 | H92: =SUM(H87:H91) -> 19.77 | I92: =SUM(I87:I91) -> 84.13 | J92: =SUM(J87:J91) -> 592.83 | L92: =SUM(L87:L91) -> 92.89
A93: =A87 -> 2 | B93: =B87 -> 1 | C93: Обед
D101: итого | F101: =SUM(F93:F100) -> 0 | G101: =SUM(G93:G100) -> 0.00 | H101: =SUM(H93:H100) -> 0.00 | I101: =SUM(I93:I100) -> 0.00 | J101: =SUM(J93:J100) -> 0.00 | L101: =SUM(L93:L100) -> 0.00
A102: =A87 -> 2 | B102: =B87 -> 1 | C102: Итого за день: | F102: =F92+F101 -> 507 | G102: =G92+G101 -> 19.00 | H102: =H92+H101 -> 19.77 | I102: =I92+I101 -> 84.13 | J102: =J92+J101 -> 592.83 | L102: =L92+L101 -> 92.89
A103: 2 | B103: 2 | C103: Завтрак | D103: гор.блюдо | E103: Жаркое из птицы (куриных грудок) | F103: 200 | G103: 14.01 | H103: 15.47 | I103: 52.76 | J103: 403.54 | L103: 92.89
D104: доп.гарнир | E104: Икра из кабачков | F104: 60 | G104: 0.6 | H104: 3.2 | I104: 4.20 | J104: 38.15
D105: гор.напиток | E105: Чай с молоком, сахаром | F105: 200 | G105: 1.52 | H105: 1.35 | I105: 8.92 | J105: 53.07
D106: хлеб бел. | E106: Хлеб пшеничный | F106: 20 | G106: 1.52 | H106: 0.16 | I106: 9.84 | J106: 47.00
D107: хлеб черн. | E107: Хлеб ржаной | F107: 20 | G107: 1.32 | H107: 0.24 | I107: 7.92 | J107: 39.60
D109: итого | F109: =SUM(F103:F108) -> 500 | G109: =SUM(G103:G108) -> 18.97 | H109: 20.42 | I109: 83.64 | J109: 581.36 | L109: =L103 -> 92.89
A110: =A103 -> 2 | B110: =B103 -> 2 | C110: Обед
D118: итого | F118: =SUM(F110:F117) -> 0 | G118: =SUM(G110:G117) -> 0.00 | H118: =SUM(H110:H117) -> 0 | I118: =SUM(I110:I117) -> 0 | J118: =SUM(J110:J117) -> 0 | L118: =SUM(L110:L117) -> 0.00
A119: =A103 -> 2 | B119: =B103 -> 2 | C119: Итого за день: | F119: =F109+F118 -> 500 | G119: =G109+G118 -> 18.97 | H119: =H109+H118 -> 20.42 | I119: =I109+I118 -> 83.64 | J119: =J109+J118 -> 581.36 | L119: =L109+L118 -> 92.89
A120: 2 | B120: 3 | C120: Завтрак | D120: фрукты | E120: Яблоко | F120: 100 | G120: 0.4 | H120: 0.4 | I120: 9.8 | J120: 47 | L120: 92.89
D121: гор.блюдо | E121: Каша гречневая вязкая, котлеты из говядины с овощами | F121: 252 | G121: 14.88 | H121: 17.87 | I121: 46.64 | J121: 373.3
D122: гор.напиток | E122: Чай с сахаром и лимоном | F122: 200 | G122: 0.13 | H122: 0.02 | I122: 8.2 | J122: 34.02
D123: хлеб бел. | E123: Хлеб пшеничный | F123: 20 | G123: 1.52 | H123: 0.16 | I123: 9.84 | J123: 47.00
D124: хлеб черн. | E124: Хлеб ржаной | F124: 30 | G124: 1.98 | H124: 0.36 | I124: 11.88 | J124: 59.40
D126: итого | F126: =SUM(F120:F125) -> 602 | G126: =SUM(G120:G125) -> 18.91 | H126: 18.81 | I126: 86.36 | J126: 560.72 | L126: =L120 -> 92.89
A127: =A120 -> 2 | B127: =B120 -> 3 | C127: Обед | L127: 92.89
D135: итого | F135: =SUM(F127:F134) -> 0 | G135: =SUM(G127:G134) -> 0.00 | H135: =SUM(H127:H134) -> 0.00 | I135: =SUM(I127:I134) -> 0.00 | J135: =SUM(J127:J134) -> 0.00
A136: =A120 -> 2 | B136: =B120 -> 3 | C136: Итого за день: | F136: =F126+F135 -> 602 | G136: =G126+G135 -> 18.91 | H136: =H126+H135 -> 18.81 | I136: =I126+I135 -> 86.36 | J136: =J126+J135 -> 560.72 | L136: =L126+L135 -> 92.89
A137: 2 | B137: 4 | C137: Завтрак | D137: сладкое | E137: Печенье | F137: 20 | G137: 1.48 | H137: 1.88 | I137: 5.42 | J137: 62.14 | L137: 92.89
D138: гор.блюдо | E138: Пюре картофельное, биточки рыбные из минтая с молочным соусом | F138: 280 | G138: 13.08 | H138: 17.28 | I138: 37.85 | J138: 379.2
D139: напиток | E139: Сок фруктовый | F139: 200 | G139: 1.00 | H139: 0.00 | I139: 20.2 | J139: 84.8
D140: хлеб бел. | E140: Хлеб пшеничный | F140: 20 | G140: 1.52 | H140: 0.16 | I140: 9.84 | J140: 47
D141: хлеб черн. | E141: Хлеб ржаной | F141: 20 | G141: 1.32 | H141: 0.24 | I141: 7.92 | J141: 39.6
D143: итого | F143: =SUM(F137:F142) -> 540 | G143: =SUM(G137:G142) -> 18.40 | H143: 19.56 | I143: 81.23 | J143: 612.74 | L143: 92.89
A144: =A137 -> 2 | B144: =B137 -> 4 | C144: Обед
D152: итого | F152: =SUM(F144:F151) -> 0 | G152: =SUM(G144:G151) -> 0 | H152: =SUM(H144:H151) -> 0 | I152: =SUM(I144:I151) -> 0 | J152: =SUM(J144:J151) -> 0 | L152: =SUM(L144:L151) -> 0.00
A153: =A137 -> 2 | B153: =B137 -> 4 | C153: Итого за день: | F153: =F143+F152 -> 540 | G153: =G143+G152 -> 18.40 | H153: =H143+H152 -> 19.56 | I153: =I143+I152 -> 81.23 | J153: =J143+J152 -> 612.74 | L153: =L143+L152 -> 92.89
A154: 2 | B154: 5 | C154: Завтрак | D154: фрукты | E154: Яблоко | F154: 100 | G154: 0.40 | H154: 0.40 | I154: 9.80 | J154: 47.00 | L154: 92.89
D155: гор.блюдо | E155: Рис отварной, шницель куриный в томатном соусе | F155: 250 | G155: 13.41 | H155: 16.24 | I155: 64.34 | J155: 408.63
D156: гор.напиток | E156: Какао с молоком | F156: 200 | G156: 4.08 | H156: 3.54 | I156: 2.61 | J156: 58.60
D157: хлеб бел. | E157: Хлеб пшеничный | F157: 20 | G157: 1.52 | H157: 0.16 | I157: 9.84 | J157: 47.00
D160: итого | F160: =SUM(F154:F159) -> 570 | G160: =SUM(G154:G159) -> 19.41 | H160: 20.34 | I160: 86.59 | J160: 561.23 | L160: =L154 -> 92.89
A161: =A154 -> 2 | B161: =B154 -> 5 | C161: Обед
D169: итого | F169: =SUM(F161:F168) -> 0 | G169: =SUM(G161:G168) -> 0 | H169: =SUM(H161:H168) -> 0 | I169: =SUM(I161:I168) -> 0 | J169: =SUM(J161:J168) -> 0 | L169: =SUM(L161:L168) -> 0.00
A170: =A154 -> 2 | B170: =B154 -> 5 | C170: Итого за день: | F170: =F160+F169 -> 570 | G170: =G160+G169 -> 19.41 | H170: =H160+H169 -> 20.34 | I170: =I160+I169 -> 86.59 | J170: =J160+J169 -> 561.23 | L170: =L160+L169 -> 92.89
C171: Среднее значение за период: | F171: =(F21+F37+F54+F70+F86+F102+F119+F136+F153+F170)/(IF(F21=0,0,1)+IF(F37=0,0,1)+IF(F54=0,0,1)+IF(F70=0,0,1)+IF(F86=0,0,1)+IF(F102=0,0,1)+IF(F119=0,0,1)+IF(F136=0,0,1)+IF(F153=0,0,1)+IF(F170=0,0,1)) -> 538.5 | G171: =(G21+G37+G54+G70+G86+G102+G119+G136+G153+G170)/(IF(G21=0,0,1)+IF(G37=0,0,1)+IF(G54=0,0,1)+IF(G70=0,0,1)+IF(G86=0,0,1)+IF(G102=0,0,1)+IF(G119=0,0,1)+IF(G136=0,0,1)+IF(G153=0,0,1)+IF(G170=0,0,1)) -> 18.91 | H171: =(H21+H37+H54+H70+H86+H102+H119+H136+H153+H170)/(IF(H21=0,0,1)+IF(H37=0,0,1)+IF(H54=0,0,1)+IF(H70=0,0,1)+IF(H86=0,0,1)+IF(H102=0,0,1)+IF(H119=0,0,1)+IF(H136=0,0,1)+IF(H153=0,0,1)+IF(H170=0,0,1)) -> 19.62 | I171: =(I21+I37+I54+I70+I86+I102+I119+I136+I153+I170)/(IF(I21=0,0,1)+IF(I37=0,0,1)+IF(I54=0,0,1)+IF(I70=0,0,1)+IF(I86=0,0,1)+IF(I102=0,0,1)+IF(I119=0,0,1)+IF(I136=0,0,1)+IF(I153=0,0,1)+IF(I170=0,0,1)) -> 84.086 | J171: =(J21+J37+J54+J70+J86+J102+J119+J136+J153+J170)/(IF(J21=0,0,1)+IF(J37=0,0,1)+IF(J54=0,0,1)+IF(J70=0,0,1)+IF(J86=0,0,1)+IF(J102=0,0,1)+IF(J119=0,0,1)+IF(J136=0,0,1)+IF(J153=0,0,1)+IF(J170=0,0,1)) -> 579.122 | L171: =(L21+L37+L54+L70+L86+L102+L119+L136+L153+L170)/(IF(L21=0,0,1)+IF(L37=0,0,1)+IF(L54=0,0,1)+IF(L70=0,0,1)+IF(L86=0,0,1)+IF(L102=0,0,1)+IF(L119=0,0,1)+IF(L136=0,0,1)+IF(L153=0,0,1)+IF(L170=0,0,1)) -> 92.89
